[Event "45th FIDE Olympiad 2024"]
[Site "Budapest"]
[Date "2024.09.15"]
[Round "5"]
[White "Taieb, Sahbi"]
[Black "Auguiste, Lyndon"]
[Result "1-0"]
[ECO "E40"]
[WhiteElo "2118"]
[BlackElo "1697"]
[PlyCount "47"]
[EventDate "2024.09.05"]
[EventType "team-tourn"]
[EventCountry "HUN"]
[WhiteTeam "Tunisia"]
[BlackTeam "Dominica"]
[WhiteTeamCountry "TUN"]
[BlackTeamCountry "DMA"]
[TimeControl "40/5400+30:1800+30"]

1. d4 Nf6 2. c4 e6 3. Nc3 Bb4 4. e3 Ne4 5. Qc2 Bxc3+ 6. bxc3 f5 7. Bd3 Nf6 8. Nf3 c6 9. O-O d6 10. Nd2 d5 11. Ba3 Qc7 12. f3 Nbd7 13. Rae1 c5 14. e4 dxe4 15. fxe4 Ng4 16. Nf3 O-O 17. exf5 exf5 18. Bxf5 Rxf5 19. Qxf5 Ngf6 20. Qe6+ Kh8 21. Qe8+ Ng8 22. Ng5 h6 23. Qxg8+ Kxg8 24. Re8+ 1-0

[Event "45th FIDE Olympiad 2024"]
[Site "Budapest"]
[Date "2024.09.15"]
[Round "5.1"]
[White "Gukesh, D."]
[Black "Suleymanli, Aydin"]
[Result "1-0"]
[ECO "C54"]
[WhiteElo "2764"]
[BlackElo "2632"]
[Annotator "TA"]
[PlyCount "75"]
[EventDate "2024.09.05"]
[EventType "team-tourn"]
[EventCountry "HUN"]
[SourceTitle "playchess.com"]
[Source "ChessBase"]
[SourceQuality "1"]
[WhiteTeam "India"]
[BlackTeam "Azerbaijan"]
[WhiteTeamCountry "IND"]
[BlackTeamCountry "AZE"]
[TimeControl "40/5400+30:1800+30"]

{[%evp 14,75,21,15,28,24,27,4,64,68,64,64,75,69,97,70,76,81,101,87,145,100,93,100,97,87,210,204,216,195,215,222,276,276,285,261,265,273,278,250,261,231,425,429,416,308,447,441,486,471,638,614,604,594,1661,1550,1447,838,1105,1077,1114,869,868,859]} 1. e4 {[%emt 0:00:04]} e5 {[%emt 0:00:09]} 2. Nf3 {[%emt 0:00:07]} Nc6 {[%emt 0:00:06]} 3. Bc4 {[%emt 0:00:05]} Nf6 {[%emt 0:00:06]} 4. d3 {[%emt 0:00:07]} Bc5 {[%emt 0:00:07]} 5. Bg5 {[%emt 0:00:09][%cal Bc1g5,Bg5h4,Bh4g3][%mdl 32]} h6 {[%emt 0:00:55]} 6. Bh4 {[%emt 0:00:06]} g5 {[%emt 0:02:27]} 7. Bg3 {[%emt 0:00:05]} d6 {[%emt 0:00:08]} 8. c3 {[%emt 0:01:26]} a5 {[%emt 0:14:30]} 9. Nbd2 {[%emt 0:00:07]} Ba7 {[%emt 0:06:53]} 10. a3 {[%emt 0:00:08]} Nh5 {[%emt 0:06:53] [#]} (10... O-O $11) 11. Nxe5 $1 $14 {[%emt 0:06:18]} Nxg3 {[%emt 0:02:45]} 12. Bxf7+ {[%emt 0:00:18]} Kf8 {[%emt 0:02:48]} 13. Ng6+ {[%emt 0:00:07]} Kg7 {[%emt 0:03:22]} 14. fxg3 {[%emt 0:00:55]} Kxf7 {[%emt 0:01:05]} 15. Nxh8+ {[%emt 0:01:38]} Qxh8 {[%emt 0:00:52]} 16. d4 {[%emt 0:03:19]} Kg7 {[%emt 0:00:30]} (16... Bd7 $142) 17. O-O {[%emt 0:14:27]} Bd7 {[%emt 0:02:17]} 18. Kh1 {[%emt 0:09:30]} Rf8 {[%emt 0:07:44]} 19. Qe2 {[%emt 0:00:39]} Rxf1+ {[%emt 0:01:08] This costs Black the game.} (19... Qg8 $16 {was necessary.}) 20. Rxf1 $18 {[%emt 0:00:44] And now Qf3 would win.} Qe8 {[%emt 0:00:56]} 21. Qf3 {[%emt 0:05:02]} Qe7 {[%emt 0:00:15] [#] Prevents Qf6+} 22. Nc4 $1 {[%emt 0:01:30]} Be6 {[%emt 0:12:07]} 23. Ne3 {[%emt 0:03:43]} Nd8 {[%emt 0:04:32]} 24. Nf5+ {[%emt 0:12:39]} Bxf5 {[%emt 0:00:06]} 25. exf5 {[%emt 0:00:12]} (25. Qxf5 c5 $16) 25... Qf6 {[%emt 0:00:25]} 26. Re1 {[%emt 0:00:45]} Bb6 {[%emt 0:02:14]} 27. g4 {[%emt 0:07:46]} c5 $2 {[%emt 0:02:49]} (27... c6 28. Qe4 Qf8) 28. d5 {[%emt 0:04:36]} c4 {[%emt 0:01:42]} (28... Nf7 $2 29. Re6 Bd8 30. Rxf6) 29. Re4 {[%emt 0:02:58]} Bc5 {[%emt 0:00:25]} (29... Nf7 $2 30. Re6 (30. Rxc4 $2 Ne5 $19) 30... Bd8 31. Rxf6 $18) (29... Qf7 {was called for.} 30. h3 (30. Rxc4 Kf8 $18) 30... Kf8) 30. a4 {[%emt 0:00:21] White is clearly winning.} (30. Rxc4 Nf7 31. Re4 Ne5 $16) 30... Ba7 {[%emt 0:04:58]} (30... Nf7 31. Re6 Qd8 (31... Ne5 $2 32. Rxf6 Nxf3 33. Rg6+ Kf8 34. gxf3 $18) 32. f6+ Kh8 33. Qh3) 31. Qe2 {[%emt 0:00:51]} (31. Rxc4 Nf7 32. Rc7 Qe5 33. f6+ (33. Rxb7 $2 Qe1+) 33... Qxf6 34. Rxb7 (34. Qxf6+ Kxf6 35. Rxb7 Be3 $18) 34... Bf2 35. Qxf6+ Kxf6) 31... h5 {[%emt 0:04:39]} 32. Re7+ {[%emt 0:03:04]} (32. Qxc4 hxg4 33. Qc8 (33. Rxg4 Qxf5 34. h4 Nf7 $17) 33... g3 $18) (32. gxh5 Nf7 $16) 32... Kf8 {[%emt 0:01:36]} 33. Re8+ {[%emt 0:00:20]} Kf7 {[%emt 0:00:37]} 34. gxh5 {[%emt 0:02:10]} g4 {[%emt 0:01:22]} 35. h6 {[%emt 0:02:34]} Qxf5 {[%emt 0:01:54]} 36. h7 {[%emt 0:00:52] Threatening mate with Qe7+.} (36. Rxd8 $2 {is a self mate.} Qb1+) (36. Qe7+ Kg6 37. Qg7+ (37. Rxd8 $2 Qf1#) (37. Qxd6+ Kh7 $18) 37... Kh5 $18) 36... Qb1+ {[%emt 0:01:07]} 37. Qe1 {[%emt 0:00:05]} Qxe1+ {[%emt 0:00:06]} 38. Rxe1 {[%emt 0:00:04] Weighted Error Value: White=0.11 (very precise) /Black=0.43.  Mistake:       	---       	Black=5      Inaccurate:     	White=1     	Black=2      OK:         	White=10    	Black=5      Best:        	White=3     	Black=4      Strong:       	White=1     	---        Brilliant:      	White=1     	---} 1-0

[Event "45th FIDE Olympiad 2024"]
[Site "Budapest"]
[Date "2024.09.15"]
[Round "5.1"]
[White "Houssein, Mohamed Bilal"]
[Black "Kigigha, Bomo Lovet"]
[Result "0-1"]
[ECO "B92"]
[WhiteElo "1870"]
[BlackElo "2217"]
[PlyCount "114"]
[EventDate "2024.09.05"]
[EventType "team-tourn"]
[EventCountry "HUN"]
[WhiteTeam "Djibouti"]
[BlackTeam "Nigeria"]
[WhiteTeamCountry "DJI"]
[BlackTeamCountry "NGR"]
[TimeControl "40/5400+30:1800+30"]

1. e4 c5 2. Nf3 d6 3. d4 cxd4 4. Nxd4 Nf6 5. Nc3 a6 6. Be2 e5 7. Nb3 Be6 8. Be3 Be7 9. Nd5 Nxd5 10. exd5 Bf5 11. Qd2 Nd7 12. Na5 Qc7 13. c4 O-O 14. b4 Qb8 15. O-O Rc8 16. f4 Be4 17. Bd3 Bxd3 18. Qxd3 Bd8 19. Nb3 exf4 20. Bxf4 Qa7+ 21. Kh1 Bf6 22. Rac1 Be5 23. Be3 Qb8 24. Na5 Qc7 25. Qd2 Nf6 26. c5 Qe7 27. c6 b5 28. Rf3 Ne4 29. Qc2 Qh4 30. Rh3 Qg4 31. Qd1 Qg6 32. Qh5 Nc3 33. Qxg6 hxg6 34. Rc2 Nxd5 35. Bd2 Nc7 36. Bc3 Re8 37. Rc1 Bxc3 38. Rhxc3 Re4 39. a3 Rae8 40. h3 Re1+ 41. Rxe1 Rxe1+ 42. Kh2 Kf8 43. Nb7 Ke7 44. Kg3 Re4 45. Kf3 f5 46. Rd3 Re6 47. Na5 d5 48. Rc3 g5 49. Nb3 g6 50. Nd4 Re4 51. Rd3 Kd6 52. Rd2 Ne6 53. Ne2 Kxc6 54. Nc3 Rd4 55. Re2 Rd3+ 56. Kf2 Kd6 57. Nb1 Rb3 {0-} 0-1

[Event "45th FIDE Olympiad 2024"]
[Site "Budapest"]
[Date "2024.09.15"]
[Round "5.2"]
[White "Abasov, Nijat"]
[Black "Praggnanandhaa, R."]
[Result "1/2-1/2"]
[ECO "D02"]
[WhiteElo "2626"]
[BlackElo "2750"]
[Annotator "TA"]
[PlyCount "68"]
[EventDate "2024.09.05"]
[EventType "team-tourn"]
[EventCountry "HUN"]
[SourceTitle "playchess.com"]
[Source "ChessBase"]
[SourceQuality "1"]
[WhiteTeam "Azerbaijan"]
[BlackTeam "India"]
[WhiteTeamCountry "AZE"]
[BlackTeamCountry "IND"]
[TimeControl "40/5400+30:1800+30"]

{[%evp 9,68,-14,19,6,16,6,13,0,1,0,6,0,10,13,6,6,10,0,0,0,12,-41,-37,-39,-31,-37,-26,-39,-25,-44,-44,-54,-42,-50,-42,-54,-2,-8,-12,-17,0,0,0,0,0,0,0,0,0,0,0,0,0,0,0,0,0,0,0,0,0]} 1. d4 {[%emt 0:00:07]} d5 {[%emt 0:00:53]} 2. Nf3 {[%emt 0:00:11]} Nf6 {[%emt 0:00:06]} 3. Bf4 {[%emt 0:00:04]} c5 {[%emt 0:01:31]} 4. e3 {[%emt 0:01:45]} Nc6 {[%emt 0:00:17]} 5. Nbd2 {[%emt 0:00:07]} cxd4 {[%emt 0:00:47]} 6. exd4 {[%emt 0:00:06]} a6 {[%emt 0:00:06]} 7. Nb3 {[%emt 0:02:53]} Bf5 {[%emt 0:08:47]} 8. Bd3 {[%emt 0:01:37]} Bxd3 {[%emt 0:01:52]} 9. Qxd3 {[%emt 0:00:06]} e6 {[%emt 0:00:06]} 10. O-O {[%emt 0:01:35]} Bd6 {[%emt 0:03:32]} 11. Bxd6 {[%emt 0:01:21]} Qxd6 {[%emt 0:00:11]} 12. Rfe1 {[%emt 0:00:51]} O-O {[%emt 0:00:32]} 13. Ne5 {[%emt 0:00:50]} Qc7 {[%emt 0:08:38]} 14. c3 {[%emt 0:09:45]} Ne4 {[%emt 0:04:08]} 15. Nd2 {[%emt 0:11:36]} ({White should play} 15. Nxc6 $11 Qxc6 16. Nc1) 15... Nxe5 $15 {[%emt 0:09:29]} 16. dxe5 {[%emt 0:01:24]} Nxd2 {[%emt 0:05:56]} 17. Qxd2 {[%emt 0:00:10]} Rfc8 {[%emt 0:00:13]} 18. Re3 {[%emt 0:00:46]} Qe7 {[%emt 0:03:43]} 19. Rg3 {[%emt 0:01:49]} Rc4 {[%emt 0:02:16]} 20. Re1 {[%emt 0:07:13]} b5 {[%emt 0:03:45]} 21. b3 {[%emt 0:07:43]} Rc6 {[%emt 0:02:12]} 22. Qd4 {[%emt 0:00:53]} Rac8 {[%emt 0:04:27]} (22... a5 $15) 23. h4 $1 $11 {[%emt 0:01:02] The position is equal.} a5 {[%emt 0:05:07]} 24. h5 {[%emt 0:19:30]} h6 {[%emt 0:01:16]} 25. Ree3 {[%emt 0:01:54]} b4 {[%emt 0:02:29]} 26. Qg4 {[%emt 0:03:19]} Qf8 {[%emt 0:02:06]} 27. cxb4 {[%emt 0:01:19]} axb4 {[%emt 0:05:07]} 28. Qf4 $1 {[%emt 0:00:18]} Kh8 {[%emt 0:04:24]} 29. Rg4 {[%emt 0:07:42]} Rc1+ {[%emt 0:04:51]} 30. Kh2 {[%emt 0:00:04]} R1c2 {[%emt 0:02:49]} 31. Rf3 {[%emt 0:02:57]} R8c7 {[%emt 0:01:47]} (31... Rxa2 $2 {loses.} 32. Qxf7 Qg8 (32... Qxf7 $2 33. Rxf7 d4 34. Rfxg7 $18) 33. Rf6 (33. Rxb4 Re2 $11) 33... Qxf7 34. Rxf7 $18) 32. Rg6 {[%emt 0:01:22]} Qg8 {[%emt 0:03:48]} ({Of course not} 32... Rxa2 $6 33. Rxe6 Rc3 34. Rd6 $16 (34. Qxf7 Rxf3 35. Qxf3 Rxf2 $11)) 33. Rxh6+ {[%emt 0:13:42]} gxh6 {[%emt 0:00:07]} 34. Qxh6+ {[%emt 0:00:02]} Qh7 {[%emt 0:00:01] Weighted Error Value: White=0.07 (flawless) /Black=0.07 (flawless) .  Mistake:       	White=1     	Black=1      OK:         	White=10    	Black=12     Best:        	White=1     	Black=1      Strong:       	White=2     	---} 1/2-1/2

[Event "45th FIDE Olympiad 2024"]
[Site "Budapest"]
[Date "2024.09.15"]
[Round "5.2"]
[White "Osunfuyi, Abimbola"]
[Black "Omar, Aden Omar"]
[Result "1-0"]
[ECO "A17"]
[WhiteElo "2164"]
[BlackElo "1779"]
[PlyCount "49"]
[EventDate "2024.09.05"]
[EventType "team-tourn"]
[EventCountry "HUN"]
[WhiteTeam "Nigeria"]
[BlackTeam "Djibouti"]
[WhiteTeamCountry "NGR"]
[BlackTeamCountry "DJI"]
[TimeControl "40/5400+30:1800+30"]

1. Nf3 d5 2. e3 Nf6 3. c4 e6 4. Nc3 a6 5. b3 Nbd7 6. Bb2 b6 7. cxd5 exd5 8. Rc1 c5 9. d4 Bb7 10. Bd3 Bd6 11. O-O O-O 12. dxc5 bxc5 13. Bf5 Re8 14. Na4 Qe7 15. Qc2 Ne4 16. Bxd7 Qxd7 17. Nb6 Qe7 18. Nxa8 Bxa8 19. Rfe1 Qe6 20. Nd2 Nxd2 21. Qxd2 Qh6 22. f4 Re6 23. Ba3 d4 24. Bxc5 Rg6 25. Bxd6 1-0

[Event "45th FIDE Olympiad 2024"]
[Site "Budapest"]
[Date "2024.09.15"]
[Round "5.3"]
[White "Erigaisi, Arjun"]
[Black "Mamedov, Rauf"]
[Result "1-0"]
[ECO "B77"]
[WhiteElo "2778"]
[BlackElo "2637"]
[Annotator "TA"]
[PlyCount "87"]
[EventDate "2024.09.05"]
[EventType "team-tourn"]
[EventCountry "HUN"]
[SourceTitle "playchess.com"]
[Source "ChessBase"]
[SourceQuality "1"]
[WhiteTeam "India"]
[BlackTeam "Azerbaijan"]
[WhiteTeamCountry "IND"]
[BlackTeamCountry "AZE"]
[TimeControl "40/5400+30:1800+30"]

{[%evp 28,87,18,33,32,25,29,24,30,34,33,31,23,45,30,14,12,0,0,0,0,0,0,0,0,0,0,0,31,0,66,44,101,120,140,62,177,179,188,123,162,179,151,168,158,152,198,179,278,258,490,493,502,417,1262,1177,1239,1215,5210,5275,5077,4622]} 1. e4 {[%emt 0:01:41]} c5 {[%emt 0:00:08]} 2. Nf3 {[%emt 0:02:52]} d6 {[%emt 0:00:46]} 3. d4 {[%emt 0:00:05]} cxd4 {[%emt 0:00:04]} 4. Nxd4 {[%emt 0:00:04]} Nf6 {[%emt 0:00:03]} 5. Nc3 {[%emt 0:00:05]} g6 {[%emt 0:00:02]} 6. Be3 {[%emt 0:00:14]} Bg7 {[%emt 0:00:04]} 7. f3 {[%emt 0:00:05]} Nc6 {[%emt 0:00:08]} 8. Qd2 {[%emt 0:00:05]} O-O {[%emt 0:00:05]} 9. Bc4 {[%emt 0:00:55]} Nxd4 {[%emt 0:03:05]} 10. Bxd4 {[%emt 0:00:16]} Be6 {[%emt 0:00:04]} 11. Bb3 {[%emt 0:05:19]} Qa5 {[%emt 0:00:06]} 12. O-O-O {[%emt 0:03:01]} b5 {[%emt 0:00:43][%cal Bb7b5,Bb5b4][%mdl 32]} 13. Kb1 {[%emt 0:03:32]} b4 {[%emt 0:00:08]} 14. Nd5 {[%emt 0:04:02]} Bxd5 {[%emt 0:00:27]} 15. exd5 {[%emt 0:01:28]} Qb5 $1 {[%emt 0:00:09]} 16. Qd3 {[%emt 0:01:29]} Qxd3 {[%emt 0:24:13]} 17. Rxd3 {[%emt 0:00:30]} Rfc8 {[%emt 0:01:19] White has an edge.} 18. Re1 {[%emt 0:06:16]} Rc7 {[%emt 0:02:32]} 19. c3 {[%emt 0:04:33]} a5 {[%emt 0:07:21]} 20. cxb4 {[%emt 0:00:08]} axb4 {[%emt 0:01:00]} 21. g4 {[%emt 0:12:05]} Rac8 {[%emt 0:20:01]} 22. Rdd1 {[%emt 0:00:33]} (22. Bb6 $5 Rb7 $8 23. Bf2 $11) 22... Bh6 {[%emt 0:07:48]} 23. h4 {[%emt 0:10:13] Strongly threatening g5.} Bf4 {[%emt 0:06:31]} 24. Bb6 {[%emt 0:05:05]} Rb7 {[%emt 0:03:29]} 25. Be3 {[%emt 0:00:08]} Bxe3 {[%emt 0:03:11]} 26. Rxe3 {[%emt 0:00:05]} Kf8 {[%emt 0:02:07]} 27. Ba4 {[%emt 0:00:38]} Rc5 {[%emt 0:08:42]} 28. Bc6 $36 {[%emt 0:04:20][%mdl 2048] White fights for an advantage.} Ra7 {[%emt 0:00:09]} ({Better is} 28... Rb6 $11) 29. g5 $1 $14 {[%emt 0:02:17]} Nd7 {[%emt 0:01:38] [#]} 30. Rd4 $1 {[%emt 0:01:16]} Nb6 {[%emt 0:03:27]} 31. Rb3 $1 {[%emt 0:11:41]} (31. Rxb4 $6 Nxd5 32. Bxd5 Rxd5 $11) 31... e5 {[%emt 0:00:30]} (31... Nc4 $1 $14) 32. Rdxb4 $18 {[%emt 0:00:05]} Nxd5 {[%emt 0:00:03]} 33. Rb8+ {[%emt 0:03:56]} Kg7 {[%emt 0:00:10]} 34. Bxd5 {[%emt 0:00:04]} Rxd5 {[%emt 0:00:02]} 35. R3b7 {[%emt 0:00:06]} Rxb7 {[%emt 0:06:26]} 36. Rxb7 {[%emt 0:00:09][%mdl 4096] Endgame. KR-KR} Rd4 {[%emt 0:00:02] [#]} 37. b4 $1 {[%emt 0:09:00]} Rxh4 {[%emt 0:00:44]} (37... d5 $142) 38. a4 {[%emt 0:00:05][%cal Ba2a4,Ba4a5,Ba5a6,Ba6a7][%mdl 32] a5 would now be deadly.} h5 $2 {[%emt 0:01:04]} (38... Rh1+ 39. Kc2 Rh2+ 40. Kb1 Rh1+ 41. Kc2 Rh2+ 42. Kb3 Rh3) 39. gxh6+ {[%emt 0:01:11]} Rxh6 {[%emt 0:00:25]} 40. a5 {[%emt 0:00:53] aiming for a6.} Rh3 {[%emt 0:00:39]} (40... e4 $142 41. fxe4 g5) 41. a6 {[%emt 0:32:31] White is clearly winning.} Rxf3 {[%emt 0:02:34]} 42. Rb5 {[%emt 0:00:00]} e4 {[%emt 0:01:38][%cal Be5e4,Be4e3][%mdl 32]} 43. a7 {[%emt 0:00:00]} e3 {[%emt 0:01:17]} 44. Kc2 {[%emt 0:00:00] Weighted Error Value: White=0.01 (flawless) /Black=0.27 (precise) .  Mistake:       	---       	Black=5      Inaccurate:     	---       	Black=1      OK:         	White=10    	Black=12     Best:        	White=5     	Black=1      Strong:       	White=4     	---} (44. a8=B Rf1+ 45. Kb2 e2 46. Bg2 Rg1 (46... e1=R 47. Bxf1 Rxf1 48. Rd5 $17) 47. Rb7 e1=Q (47... e1=B 48. Bc6 $17) 48. Kb3 Qe6+ (48... Rxg2 49. Rc7 Qd1+ 50. Kc4 Qc2+ 51. Kb5 Qxc7 52. Ka4 Qc6+ 53. b5 Qc3 54. b6 Qc4+ 55. Ka5 Rg5#) 49. Kc3 Rc1+ (49... Rxg2 50. Rc7 Qe3+ 51. Kc4 Rc2+ 52. Kb5 Rxc7 53. Ka6 Qe8 54. Ka5 Rb7 55. Ka6 Qb5#) 50. Kb2 Qc4) 1-0

[Event "45th FIDE Olympiad 2024"]
[Site "Budapest"]
[Date "2024.09.15"]
[Round "5.3"]
[White "Mohamed, Ali Dima"]
[Black "Ofowino, Toritsemuwa"]
[Result "0-1"]
[ECO "B13"]
[WhiteElo "1761"]
[BlackElo "2020"]
[PlyCount "160"]
[EventDate "2024.09.05"]
[EventType "team-tourn"]
[EventCountry "HUN"]
[WhiteTeam "Djibouti"]
[BlackTeam "Nigeria"]
[WhiteTeamCountry "DJI"]
[BlackTeamCountry "NGR"]
[TimeControl "40/5400+30:1800+30"]

1. e4 c6 2. d4 d5 3. exd5 cxd5 4. Nf3 Nc6 5. Bf4 Bg4 6. c3 Nf6 7. Nbd2 a6 8. Bd3 e6 9. h3 Bh5 10. Qb3 Na5 11. Qa4+ b5 12. Qc2 Bd6 13. Bxd6 Qxd6 14. Ne5 O-O 15. f4 Bg6 16. O-O Nc4 17. Ndxc4 dxc4 18. Bxg6 hxg6 19. b3 cxb3 20. axb3 Nd5 21. Qd3 Rfd8 22. Rf3 Rac8 23. Qd2 Nf6 24. Qd3 Nd5 25. Rc1 Qa3 26. Qb1 Qd6 27. Qe4 Rc7 28. Qe1 Rdc8 29. Kh2 Ne7 30. Nd3 Nf5 31. g4 Ne7 32. Nc5 Nd5 33. Qe5 Qc6 34. Re1 Re7 35. Kg3 Ree8 36. Qg5 Qd6 37. Ra1 Ra8 38. Ne4 Qc6 39. h4 Ne7 40. Re1 Rad8 41. h5 Rd5 42. Qh4 Rxh5 43. gxh5 Nf5+ 44. Kh3 Nxh4 45. Kxh4 gxh5 46. Rg3 Kf8 47. Rg5 g6 48. Rc5 Qb7 49. Kg3 Rd8 50. Nd2 b4 51. Nf3 bxc3 52. Rxc3 Qb4 53. Rec1 Rxd4 54. Nxd4 Qxd4 55. Rc8+ Kg7 56. R1c3 e5 57. fxe5 Qxe5+ 58. Kh3 g5 59. R8c5 Qf4 60. R5c4 Qf5+ 61. Kh2 Kg6 62. Rc2 f6 63. Rc8 Qf4+ 64. Kg2 Qe4+ 65. Kh2 Qe5+ 66. Kg2 Qd5+ 67. Kh2 Qxb3 68. R8c6 h4 69. R6c3 Qe6 70. Rc6 Qe5+ 71. Kh1 g4 72. R6c4 f5 73. Rc6+ Kg5 74. R6c5 Qe4+ 75. Kg1 h3 76. R5c4 Qe1+ 77. Kh2 Qe5+ 78. Kg1 g3 79. Rc1 Qe3+ 80. Kh1 Qf3+ {0-} 0-1

[Event "45th FIDE Olympiad 2024"]
[Site "Budapest"]
[Date "2024.09.15"]
[Round "5.4"]
[White "Mamedyarov, Shakhriyar"]
[Black "Vidit, Santosh Gujrathi"]
[Result "1/2-1/2"]
[ECO "A08"]
[WhiteElo "2733"]
[BlackElo "2720"]
[Annotator "TA"]
[PlyCount "166"]
[EventDate "2024.09.05"]
[EventType "team-tourn"]
[EventCountry "HUN"]
[SourceTitle "playchess.com"]
[Source "ChessBase"]
[SourceQuality "1"]
[WhiteTeam "Azerbaijan"]
[BlackTeam "India"]
[WhiteTeamCountry "AZE"]
[BlackTeamCountry "IND"]
[TimeControl "40/5400+30:1800+30"]

{[%evp 84,166,-8,-8,-8,-8,-8,-8,0,0,0,0,0,0,0,-8,-8,-8,-8,-8,-8,-8,-8,-8,-8,-8,-8,-8,-8,-8,-8,-8,-8,-8,-8,-8,-8,-8,-8,-8,-8,-8,-8,-8,-8,-8,-8,-8,-8,-8,-8,-8,-8,-8,0,0,0,-8,-8,-8,-8,-8,-8,-8,-8,-8,-8,-8,-8,-8,-8,-8,-8,-8,0,-8,-8,-8,-8,-8,-8,-8,-8,-8,-8]} 1. Nf3 {[%emt 0:00:04]} d5 {[%emt 0:01:06]} 2. g3 {[%emt 0:00:07]} c5 {[%emt 0:01:48]} 3. Bg2 {[%emt 0:00:13]} Nf6 {[%emt 0:00:42]} 4. O-O {[%emt 0:00:18]} g6 {[%emt 0:01:25]} 5. d4 {[%emt 0:00:14]} cxd4 {[%emt 0:00:19]} 6. Qxd4 {[%emt 0:00:05] A08: King's Indian Attack.} Bg7 {[%emt 0:19:45]} 7. Rd1 {[%emt 0:01:08]} Nc6 {[%emt 0:02:42]} 8. Qa4 {[%emt 0:00:24]} O-O {[%emt 0:01:24]} 9. Nc3 {[%emt 0:00:22]} Bf5 $146 {[%emt 0:05:05]} ({Predecessor:} 9... a6 10. Qh4 Qb6 11. Nxd5 Nxd5 12. Rxd5 Nb4 13. Be3 Qxe3 14. Ng5 h6 15. fxe3 Nxd5 16. Bxd5 hxg5 17. Qxg5 e6 18. Be4 Bxb2 19. Rd1 Bg7 20. h4 {1-0 Nihal,S (2650)-So,W (2772) Speed Chess Chess.com INT blitz 2021 (3.12)}) 10. Ne1 {[%emt 0:05:36]} Qb6 {[%emt 0:01:24]} 11. Nxd5 {[%emt 0:02:31]} Nxd5 {[%emt 0:00:08]} 12. Bxd5 {[%emt 0:00:24]} Rad8 {[%emt 0:06:07]} 13. c3 {[%emt 0:07:57]} Bd4 {[%emt 0:03:36]} 14. Bxf7+ {[%emt 0:07:43]} Kxf7 {[%emt 0:02:18]} 15. cxd4 {[%emt 0:01:16]} Rxd4 {[%emt 0:00:09]} 16. Rxd4 {[%emt 0:03:19]} Nxd4 {[%emt 0:00:35]} 17. Nf3 {[%emt 0:13:44]} Nxe2+ {[%emt 0:03:41]} 18. Kg2 {[%emt 0:00:07]} Nxc1 {[%emt 0:02:57]} 19. Rxc1 {[%emt 0:00:11]} Qxb2 {[%emt 0:03:57]} 20. Rc7 {[%emt 0:00:28]} Qf6 {[%emt 0:05:35]} 21. Rxb7 {[%emt 0:05:04]} Kg8 {[%emt 0:07:14]} 22. Rxa7 {[%emt 0:07:38]} Bd7 {[%emt 0:10:39]} 23. Qb3+ {[%emt 0:07:50]} Be6 {[%emt 0:00:09]} 24. Qb7 {[%emt 0:00:28]} Qf5 {[%emt 0:05:48]} 25. Ra8 {[%emt 0:05:36]} Bd5 {[%emt 0:00:40]} 26. Rxf8+ {[%emt 0:00:06]} Kxf8 {[%emt 0:00:02]} 27. Qb8+ {[%emt 0:00:06]} Kf7 {[%emt 0:03:50]} 28. Qf4 {[%emt 0:00:07]} e5 {[%emt 0:02:31]} 29. Qe3 {[%emt 0:00:13]} g5 {[%emt 0:00:18]} 30. h3 {[%emt 0:00:01]} h5 {[%emt 0:01:11]} 31. Qa7+ {[%emt 0:00:18]} Kg6 {[%emt 0:01:04]} 32. Qa6+ {[%emt 0:00:57]} Kg7 {[%emt 0:00:41]} 33. Qa7+ {[%emt 0:00:14]} Qf7 {[%emt 0:02:07]} 34. Qe3 {[%emt 0:00:02]} Qf6 {[%emt 0:02:15]} 35. g4 {[%emt 0:02:16]} hxg4 {[%emt 0:00:38]} 36. hxg4 {[%emt 0:00:04]} Bc6 {[%emt 0:02:55]} 37. Qc3 {[%emt 0:01:12]} Kh6 {[%emt 0:00:39]} 38. Qb3 {[%emt 0:03:52]} Be4 {[%emt 0:00:42]} 39. Qe3 {[%emt 0:00:44]} Bc6 {[%emt 0:00:53]} 40. Qb3 {[%emt 0:00:45]} Kg7 {[%emt 0:00:41]} 41. Qc3 {[%emt 0:30:19]} Kf8 {[%emt 0:15:09]} 42. a4 {[%emt 0:00:00]} Ke8 {[%emt 0:00:58]} 43. a5 {[%emt 0:00:00]} Kd7 {[%emt 0:00:17]} 44. Qd3+ {[%emt 0:00:00]} Kc7 {[%emt 0:01:31]} 45. Qh7+ {[%emt 0:00:00]} Kd6 {[%emt 0:03:32]} (45... Kc8 $5 46. Qg8+ $8 Kb7 47. Qb3+ Kc7 $15) 46. Qd3+ {[%emt 0:00:00]} Kc5 {[%emt 0:01:02]} 47. Qb3 $1 {[%emt 0:00:00]} Kd6 {[%emt 0:02:11]} (47... Qf4 $5 48. Qb6+ $8 Kd6 49. Qd8+ Ke6 50. Qc8+ Kd5 $11) 48. Qd3+ {[%emt 0:00:00]} Kc7 {[%emt 0:00:37]} 49. Qh7+ $1 {[%emt 0:00:00]} Kc8 {[%emt 0:01:25]} 50. Qg8+ {[%emt 0:00:00]} Kb7 {[%emt 0:00:07]} 51. Qb3+ {[%emt 0:03:06]} Kc7 {[%emt 0:00:22]} 52. Qc3 $1 {[%emt 0:00:21]} Qf4 {[%emt 0:02:58]} 53. Kf1 $1 {[%emt 0:00:04]} Qxf3 {[%emt 0:00:09]} 54. Qxe5+ {[%emt 0:00:02]} Kb7 {[%emt 0:02:12]} 55. Qb2+ $1 {[%emt 0:00:05]} Kc8 {[%emt 0:00:19]} 56. Qh8+ {[%emt 0:00:06]} Kd7 {[%emt 0:00:06]} ({Much less strong is} 56... Kb7 57. Qb2+ Kc8 58. Qh8+ Kd7 (58... Kb7 59. Qb2+ $15) 59. Qg7+ Kd6 60. Qg6+ Kc7 61. Qg7+ Bd7 62. Qxg5 $11) 57. Qg7+ {[%emt 0:00:10]} Ke6 {[%emt 0:01:47]} 58. Qg8+ {[%emt 0:00:22]} Kf6 {[%emt 0:01:07]} 59. Qh8+ $1 {[%emt 0:00:42]} Ke7 {[%emt 0:01:34]} 60. Qg7+ {[%emt 0:00:13]} Kd6 {[%emt 0:00:42]} 61. Qg6+ {[%emt 0:00:23]} Kc7 {[%emt 0:00:23]} 62. Qg7+ {[%emt 0:00:05]} Bd7 {[%emt 0:00:43]} 63. Qxg5 {[%emt 0:04:13]} Qd1+ {[%emt 0:00:09]} (63... Bxg4 $2 64. Qc1+ Kb8 65. Qb2+ Kc8 66. Qc2+ Kd8 67. Qd2+ Kc7 68. Qh6 Bh3+ 69. Ke1 $17) 64. Kg2 {[%emt 0:00:01]} Bc6+ {[%emt 0:00:06]} (64... Qxg4+ {simplifies} 65. Qxg4 Bxg4 66. Kg3 Bf5) 65. Kg3 {[%emt 0:00:05]} Qf3+ {[%emt 0:02:12]} 66. Kh4 {[%emt 0:00:03]} Qh1+ {[%emt 0:00:27]} 67. Kg3 {[%emt 0:00:02]} Qg2+ {[%emt 0:00:42]} 68. Kf4 {[%emt 0:00:03]} Qe4+ {[%emt 0:00:51]} (68... Qxf2+ 69. Ke5 Qc5+ 70. Kf4 Qd4+ 71. Kg3 $17) 69. Kg3 {[%emt 0:00:02]} Qg2+ {[%emt 0:00:45]} 70. Kf4 {[%emt 0:00:03]} Qxf2+ {[%emt 0:00:34]} 71. Ke5 {[%emt 0:00:05]} Qc5+ {[%emt 0:00:18]} 72. Kf6 {[%emt 0:01:32]} Qf8+ {[%emt 0:00:08]} 73. Kg6 {[%emt 0:00:51]} Be4+ {[%emt 0:00:43]} 74. Kh5 {[%emt 0:00:04]} Qf7+ {[%emt 0:00:54]} 75. Kh4 {[%emt 0:00:03]} Qf2+ {[%emt 0:00:08]} 76. Kh5 {[%emt 0:00:02]} Qh2+ {[%emt 0:00:20]} 77. Qh4 {[%emt 0:00:03]} Qe5+ {[%emt 0:00:23]} (77... Qxh4+ {simplifies} 78. Kxh4 Kc6 79. g5 Bd3) 78. Qg5 {[%emt 0:00:12]} Qh2+ {[%emt 0:00:37]} 79. Qh4 {[%emt 0:00:04]} Qd6 {[%emt 0:00:30]} (79... Qe5+ 80. Qg5 Qe8+ 81. Kh4 $17) 80. Qf2 {[%emt 0:00:39]} Qg6+ {[%emt 0:01:00]} 81. Kh4 {[%emt 0:00:04]} Qh6+ {[%emt 0:00:06]} 82. Kg3 {[%emt 0:00:04]} Qd6+ {[%emt 0:00:04]} 83. Qf4 {[%emt 0:00:03]} Qxf4+ {[%emt 0:00:02]} 1/2-1/2